lending/lending_fUSD_20240816
["ID","MTS","AMOUNT","RATE_DAILY","PERIOD"]
[335085455,1723815056020,-606.61,0.00023013,10]
[335085456,1723815056031,-551.95,0.00023013,10]
[335085457,1723815056040,-551.95,0.00023013,10]
[335085458,1723815056049,-606.61,0.00023013,10]
[335085459,1723815056059,-606.61,0.00023013,10]
[335085460,1723815056070,-551.95,0.00023013,10]
[335085461,1723815056081,-606.61,0.00023013,10]
[335085462,1723815056090,-551.95,0.00023013,10]
[335085463,1723815056100,-606.61,0.00023013,10]
[335085464,1723815056109,-551.95,0.00023013,10]
[335085465,1723815056119,-606.61,0.00023013,10]
[335085466,1723815056128,-500.0,0.00023013,10]
[335085467,1723815056139,-551.95,0.00023013,10]
[335085468,1723815056148,-606.61,0.00023013,10]
[335085469,1723815056158,-500.0,0.00023013,10]
[335085470,1723815056168,-551.95,0.00023013,10]
[335085471,1723815056179,-606.61,0.00023013,10]
[335085472,1723815056190,-551.95,0.00023013,10]
[335085473,1723815056200,-500.0,0.00023013,10]
[335085474,1723815056210,-606.61,0.00023013,10]
[335085475,1723815056219,-551.95,0.00023013,10]
[335085476,1723815056229,-503.15539634,0.00023013,10]
[335085477,1723815056238,-606.61,0.00023013,10]
[335085478,1723815056248,-551.95,0.00023013,10]
[335085479,1723815056259,-606.61,0.00023013,10]
[335085480,1723815056271,-551.95,0.00023013,10]
[335085481,1723815056282,-551.95,0.00023013,10]
[335085482,1723815056296,-228.99383796,0.00023013,10]
[335085483,1723815056359,-288.4058635,0.00023013,10]
[335085484,1723815056372,-89.21029854,0.00023013,10]
[335085485,1723815056382,-551.95,0.00023013,10]
[335085486,1723815056391,-606.61,0.00023013,10]
[335085487,1723815056401,-606.61,0.00023013,10]
[335085488,1723815056410,-606.61,0.00023013,10]
[335085489,1723815056420,-606.61,0.00023013,10]
[335085490,1723815056429,-551.95,0.00023013,10]
[335085491,1723815056439,-50.62393842,0.00023013,10]
[335085492,1723815056455,-405.466,0.00023013,10]
[335085493,1723815056466,-150.52006158,0.00023013,10]
[335085494,1723815056476,-424.95538476,0.00023013,10]
[335085495,1723815056488,-126.99461524,0.00023013,10]
[335085496,1723815056497,-473.65534581,0.00023013,10]
[335085497,1723815057105,-267.42272386,0.00022913,2]
[335085498,1723815057117,-946.21399857,0.00022913,2]
[335085499,1723815057128,-669.58337309,0.00022913,2]
[335085500,1723815057154,-605.94939639,0.00022913,2]
[335085501,1723815057164,-133.14220834,0.00023013,10]
[335085502,1723815057173,-551.95,0.00023013,10]
[335085503,1723815057183,-552.10225656,0.00023013,10]
[335085504,1723815057191,-500.0,0.00023013,10]
[335085505,1723815057201,-500.0,0.00023013,10]
[335085506,1723815057210,-500.0,0.00023013,10]
[335085507,1723815057219,-500.0,0.00023013,10]
[335085508,1723815057229,-500.0,0.00023013,10]
[335085509,1723815057238,-500.0,0.00023013,10]
[335085510,1723815057248,-500.0,0.00023013,10]
[335085511,1723815057257,-500.0,0.00023013,10]
[335085512,1723815057266,-500.0,0.00023013,10]
[335085513,1723815057278,-12.82189195,0.00023013,10]
[335085514,1723815057299,-269.24,0.00023013,10]
[335085515,1723815057472,-217.93810805,0.00023013,10]
[335085516,1723815057482,-500.0,0.00023013,10]
[335085517,1723815057492,-500.0,0.00023013,10]
[335085518,1723815057502,-500.0,0.00023013,10]
[335085519,1723815057512,-500.0,0.00023013,10]
[335085520,1723815057525,-500.0,0.00023013,10]
[335085521,1723815057535,-500.0,0.00023013,10]
[335085522,1723815057545,-500.0,0.00023013,10]
[335085523,1723815057556,-500.0,0.00023013,10]
[335085524,1723815057567,-512.14,0.00023013,10]
[335085525,1723815057576,-451.88275637,0.00023013,10]
[335085526,1723815057610,-48.11724363,0.00023013,10]
[335085527,1723815057621,-500.0,0.00023013,10]
[335085528,1723815057630,-500.0,0.00023013,10]
[335085529,1723815057640,-500.0,0.00023013,10]
[335085530,1723815057650,-500.0,0.00023013,10]
[335085531,1723815057660,-500.0,0.00023013,10]
[335085532,1723815057669,-500.0,0.00023013,10]
[335085533,1723815057679,-500.0,0.00023013,10]
[335085534,1723815057689,-500.0,0.00023013,10]
[335085535,1723815057699,-500.0,0.00023013,10]
[335085536,1723815057709,-500.0,0.00023013,10]
[335085537,1723815057719,-500.0,0.00023013,10]
[335085538,1723815057729,-500.0,0.00023013,10]
[335085539,1723815057739,-500.0,0.00023013,10]
[335085540,1723815057748,-500.0,0.00023013,10]
[335085541,1723815057758,-500.0,0.00023013,10]
[335085542,1723815057767,-500.0,0.00023013,10]
[335085543,1723815058080,-580.89929016,0.00023013,10]
[335085544,1723815058091,-500.0,0.00023013,10]
[335085545,1723815058101,-500.0,0.00023013,10]
[335085546,1723815058112,-582.55511321,0.00023013,10]
[335085547,1723815058121,-500.0,0.00023013,10]
[335085548,1723815058131,-500.0,0.00023013,10]
[335085549,1723815058141,-500.0,0.00023013,10]
[335085550,1723815058151,-500.0,0.00023013,10]
[335085551,1723815058161,-500.0,0.00023013,10]
[335085552,1723815058171,-500.0,0.00023013,10]
[335085553,1723815058180,-500.0,0.00023013,10]
[335085554,1723815058190,-500.0,0.00023013,10]
[335085555,1723815058199,-500.0,0.00023013,10]
[335085556,1723815058210,-604.86,0.00023013,10]
[335085557,1723815058220,-578.69,0.00023013,10]
[335085558,1723815058230,-578.69,0.00023013,10]
[335085559,1723815058240,-578.69,0.00023013,10]
[335085560,1723815058251,-578.69,0.00023013,10]
[335085561,1723815058263,-578.69,0.00023013,10]
[335085562,1723815058275,-578.69,0.00023013,10]
[335085563,1723815058285,-578.69,0.00023013,10]
[335085564,1723815058298,-578.69,0.00023013,10]
[335085565,1723815058309,-578.69,0.00023013,10]
[335085566,1723815058318,-578.69,0.00023013,10]
[335085567,1723815058328,-578.69,0.00023013,10]
[335085568,1723815058340,-578.69,0.00023013,10]
[335085569,1723815058350,-578.69,0.00023013,10]
[335085570,1723815058361,-578.69,0.00023013,10]
[335085571,1723815058373,-578.69,0.00023013,10]
[335085572,1723815058384,-578.69,0.00023013,10]
[335085573,1723815058395,-578.69,0.00023013,10]
[335085574,1723815058405,-578.69,0.00023013,10]
[335085575,1723815058416,-578.69,0.00023013,10]
[335085576,1723815058426,-578.69,0.00023013,10]
[335085577,1723815058437,-578.69,0.00023013,10]
[335085578,1723815058447,-578.69,0.00023013,10]
[335085579,1723815058457,-578.69,0.00023013,10]
[335085580,1723815058467,-578.75777244,0.00023013,10]
[335085581,1723815058476,-500.0,0.00023013,10]
[335085582,1723815058486,-500.0,0.00023013,10]
[335085583,1723815058495,-500.0,0.00023013,10]
[335085584,1723815058505,-500.0,0.00023013,10]
[335085585,1723815058514,-500.0,0.00023013,10]
[335085586,1723815058526,-500.0,0.00023013,10]
[335085587,1723815058536,-500.0,0.00023013,10]
[335085588,1723815058545,-500.0,0.00023013,10]
[335085589,1723815058555,-500.0,0.00023013,10]
[335085590,1723815058565,-500.0,0.00023013,10]
[335085591,1723815058574,-500.0,0.00023013,10]
[335085592,1723815058584,-500.0,0.00023013,10]
[335085593,1723815058594,-500.0,0.00023013,10]
[335085594,1723815058604,-500.0,0.00023013,10]
[335085595,1723815058614,-500.0,0.00023013,10]
[335085596,1723815058623,-500.0,0.00023013,10]
[335085597,1723815058633,-500.0,0.00023013,10]
[335085598,1723815058643,-500.0,0.00023013,10]
[335085599,1723815058652,-500.0,0.00023013,10]
[335085600,1723815058662,-500.0,0.00023013,10]
[335085601,1723815058672,-500.0,0.00023013,10]
[335085602,1723815058681,-500.0,0.00023013,10]
[335085603,1723815058690,-500.0,0.00023013,10]
[335085604,1723815058700,-500.0,0.00023013,10]
[335085605,1723815058710,-500.0,0.00023013,10]
[335085606,1723815058720,-500.0,0.00023013,10]
[335085607,1723815058729,-500.0,0.00023013,10]
[335085608,1723815058739,-500.0,0.00023013,10]
[335085609,1723815058749,-500.0,0.00023013,10]
[335085610,1723815058759,-500.0,0.00023013,10]
[335085611,1723815058768,-500.0,0.00023013,10]
[335085612,1723815058781,-500.0,0.00023013,10]
[335085613,1723815058790,-500.0,0.00023013,10]
[335085614,1723815058800,-413.78396977,0.00023013,10]
[335085615,1723815058810,-500.0,0.00023013,10]
[335085616,1723815058819,-535.94110553,0.00023013,10]
[335085617,1723815058829,-500.0,0.00023013,10]
[335085618,1723815058839,-500.0,0.00023013,10]
[335085619,1723815058849,-500.0,0.00023013,10]
[335085620,1723815058858,-500.0,0.00023013,10]
[335085621,1723815058868,-500.0,0.00023013,10]
[335085622,1723815058878,-500.0,0.00023013,10]
[335085623,1723815058888,-500.0,0.00023013,10]
[335085624,1723815058899,-500.0,0.00023013,10]
[335085625,1723815058908,-500.0,0.00023013,10]
[335085626,1723815058917,-387.36802924,0.00023013,10]
[335085627,1723815058927,-1360.35,0.00023013,10]
[335085628,1723815058937,-1360.35,0.00023013,10]
[335085629,1723815058947,-1360.35,0.00023013,10]
[335085630,1723815058957,-1360.35,0.00023013,10]
[335085631,1723815058967,-500.0,0.00023013,10]
[335085632,1723815058977,-500.0,0.00023013,10]
[335085633,1723815058986,-1360.35,0.00023013,10]
[335085634,1723815058996,-218.46429824,0.00023013,10]
[335085635,1723815059006,-1360.35,0.00023013,10]
[335085636,1723815059015,-1360.35,0.00023013,10]
[335085637,1723815059030,-1360.35,0.00023013,10]
[335085638,1723815059039,-1360.35,0.00023013,10]
[335085639,1723815059056,-1360.35,0.00023013,10]
[335085640,1723815059065,-1360.35,0.00023013,10]
[335085641,1723815059075,-500.0,0.00023013,10]
[335085642,1723815059085,-1360.35,0.00023013,10]
[335085643,1723815059094,-500.0,0.00023013,10]
[335085644,1723815059103,-1360.35,0.00023013,10]
[335085645,1723815059113,-500.0,0.00023013,10]
[335085646,1723815059122,-1360.35,0.00023013,10]
[335085647,1723815059132,-1360.35,0.00023013,10]
[335085648,1723815059141,-500.0,0.00023013,10]
[335085649,1723815059150,-151.0,0.00023013,7]
[335085650,1723815059160,-1360.35,0.00023013,10]
[335085651,1723815059169,-500.0,0.00023013,10]
[335085652,1723815059179,-1360.35,0.00023013,10]
[335085653,1723815059188,-500.0,0.00023013,10]
[335085654,1723815059197,-1360.35,0.00023013,10]
[335085655,1723815059207,-500.0,0.00023013,10]
[335085656,1723815059217,-1360.35,0.00023013,10]
[335085657,1723815059227,-500.0,0.00023013,10]
[335085658,1723815059238,-500.0,0.00023013,10]
[335085659,1723815059248,-1360.35,0.00023013,10]
[335085660,1723815059258,-500.0,0.00023013,10]
[335085661,1723815059268,-1360.35,0.00023013,10]
[335085662,1723815059287,-489.01060871,0.00023013,10]
[335085663,1723815059300,-1360.35,0.00023013,10]
[335085664,1723815059310,-1360.35,0.00023013,10]
[335085665,1723815059321,-1360.3679129,0.00023013,10]
[335085666,1723815059330,-500.0,0.00023013,10]
[335085667,1723815059340,-500.0,0.00023013,10]
[335085668,1723815059351,-500.0,0.00023013,10]
[335085669,1723815059361,-500.0,0.00023013,10]
[335085670,1723815059371,-5593.27,0.00023013,10]
[335085671,1723815059381,-500.88172177,0.00023013,10]
[335085672,1723815059390,-5593.27,0.00023013,10]
[335085673,1723815059400,-563.18268745,0.00023013,10]
[335085674,1723815059410,-5593.27,0.00023013,10]
[335085675,1723815059419,-5593.27,0.00023013,10]
[335085676,1723815059429,-5593.27,0.00023013,10]
[335085677,1723815059440,-5593.27,0.00023013,10]
[335085678,1723815059449,-5593.27,0.00023013,10]
[335085679,1723815059458,-5593.27,0.00023013,10]
[335085680,1723815059468,-5593.27,0.00023013,10]
[335085681,1723815059478,-500.0,0.00023013,10]
[335085682,1723815059487,-500.0,0.00023013,10]
[335085683,1723815059496,-2172.9238376,0.00023013,10]
[335085684,1723815059607,-3420.3461624,0.00023013,10]
[335085685,1723815059617,-78.52487574,0.00023013,10]
[335085686,1723815059675,-264.64324627,0.00023013,10]
[335085687,1723815431511,150.0,0.0001,2]
[335085688,1723815431533,150.0,0.0001,2]
[335085689,1723815431553,150.0,0.0001,2]
[335085690,1723815431576,100.0,0.0001,2]
[335085691,1723815453621,50.0,0.0001,2]
[335085692,1723815453987,131.86810677,0.0001,2]
[335085693,1723815471029,18.13189323,0.0001,2]
[335085694,1723815471049,150.0,0.0001,2]
[335085695,1723815471069,33.48376418,0.0001,2]
[335085696,1723815485006,-155.0,0.00012121,2]
[335085697,1723815494586,-264.30993991,0.00012121,2]
[335085698,1723815539097,-407.52950875,0.00012126,3]
[335085699,1723815539624,-426.10283902,0.00012126,3]
[335085700,1723815793482,45694.53977617,0.00011336,2]
[335085701,1723815950748,330.29507359,0.00011999,2]
[335085702,1723815956892,183.67754448,0.00011999,2]
[335085703,1723815959757,155.11033428,0.00011999,2]
[335085704,1723815968627,160.56380615,0.00011999,2]
[335085705,1723815984429,170.30341004,0.00011999,2]
[335085706,1723815987527,181.45389022,0.00011999,2]
[335085707,1723816004583,577.97,0.0001,2]
[335085708,1723816013159,500.0,0.00011,2]
[335085709,1723816021815,500.0,0.00012,2]
[335085710,1723816026530,155.29338036,0.00011999,2]
[335085711,1723816029871,160.39978368,0.00011999,2]
[335085712,1723816029999,189.92103514,0.00011999,2]
[335085713,1723816030846,211.0133722,0.00011999,2]
[335085714,1723816037280,175.61090752,0.00011999,2]
[335085715,1723816039815,177.92625904,0.00011999,2]
[335085728,1723816054085,155.13312574,0.00011999,2]
[335085729,1723816054497,155.18483663,0.00011999,2]
[335085730,1723816055077,471.41421915,0.00011999,2]
[335085731,1723816061100,268.62811176,0.00011999,2]
[335085732,1723816066626,160.48374424,0.00011999,2]
[335085733,1723816072399,500.0,0.00012,2]
[335085734,1723816072463,155.0,0.00011999,2]
[335085735,1723816088609,500.0,0.00012,2]
[335085736,1723816128158,320.77953073,0.00011999,2]
[335085737,1723816140151,155.1051597,0.00011999,2]
[335085749,1723816155016,3978.80981577,0.00011999,2]
[335085777,1723816231679,-150.0,0.00012819,2]
[335085778,1723816231693,-300.0,0.00012819,2]
[335085779,1723816231704,-8647.12382535,0.0001282,2]
[335085780,1723816231717,-5000.0,0.0001282,2]
[335085781,1723816231729,-5000.0,0.0001282,2]
[335085782,1723816231740,-5000.0,0.0001282,2]
[335085783,1723816231751,-426.1029,0.00012901,2]
[335085784,1723816231763,-539.48154861,0.00013051,2]
[335085785,1723816231773,-2228.70553816,0.00013052,2]
[335085786,1723816231784,-164.34661823,0.00013052,2]
[335085787,1723816231795,-155.19385311,0.00013052,2]
[335085788,1723816231806,-155.40754796,0.00013052,2]
[335085789,1723816231816,-205.57759256,0.00013086,2]
[335085790,1723816231827,-330.29507359,0.00013292,2]
[335085791,1723816231838,-225.46554159,0.00013391,2]
[335085792,1723816231852,-156.966318,0.00013391,2]
[335085793,1723816231863,-6166.36765223,0.00013687,3]
[335085794,1723816231874,-155.29472246,0.0001385,2]
[335085795,1723816231884,-316.80001562,0.0001385,2]
[335085796,1723816231896,-868.40617802,0.00013851,2]
[335085797,1723816231906,-155.1164953,0.00013861,2]
[335085798,1723816231916,-255.0,0.00013921,2]
[335085799,1723816231928,-150.52,0.00013973,2]
[335085800,1723816231938,-420.0,0.00014101,2]
[335085801,1723816231949,-5002.5198915,0.00014234,2]
[335085802,1723816231959,-155.0,0.00014509,2]
[335085803,1723816231970,-186.43470574,0.00014509,2]
[335085804,1723816231982,-4797.52635124,0.00014509,2]
[335085805,1723816231994,-499.99,0.00014517,2]
[335085806,1723816232004,-272.06,0.00014544,2]
[335085807,1723816232017,-522.85661593,0.00014681,2]
[335085808,1723816232029,-500.0,0.00014782,2]
[335085810,1723816232040,-996.05,0.00017015,2]
[335085812,1723816232050,-173.94,0.00018929,2]
[335085813,1723816232061,-16449.86,0.0001897,2]
[335085814,1723816232071,-200.0,0.00018999,2]
[335085815,1723816232082,-1416.34,0.00019063,2]
[335085816,1723816232093,-10000.0,0.00019103,2]
[335085817,1723816232104,-1000.0,0.0001914,2]
[335085818,1723816232115,-250.0,0.00019146,2]
[335085819,1723816232125,-996.05,0.00019279,2]
[335085820,1723816232136,-172.84,0.00019322,2]
[335085821,1723816232147,-250.0,0.00019347,2]
[335085822,1723816232158,-164.72,0.00020441,2]
[335085823,1723816232169,-173.94,0.00021295,2]
[335085824,1723816232181,-1000.0,0.00021533,2]
[335085825,1723816232192,-996.05,0.00021543,2]
[335085826,1723816232202,-170.2,0.0002184,2]
[335085827,1723816232213,-4863.35621175,0.00021999,2]
[335085828,1723816232224,-320.7457,0.00022037,2]
[335085829,1723816232235,-835.68,0.00022137,2]
[335085830,1723816232246,-835.68,0.00022137,2]
[335085831,1723816232258,-832.23,0.00022137,2]
[335085832,1723816232269,-152.0,0.00022432,3]
[335085833,1723816232280,-356.66,0.00022548,2]
[335085834,1723816232291,-151.03,0.00022548,2]
[335085835,1723816232302,-150.0,0.00022548,2]
[335085836,1723816232313,-356.66,0.00022548,2]
[335085837,1723816232323,-193.05,0.00022548,2]
[335085838,1723816232333,-1519.91618362,0.00022701,2]
[335085839,1723816232344,-3110.4897,0.00022703,2]
[335085840,1723816232355,-11253.26983797,0.00022712,2]
[335085841,1723816232365,-422.54887977,0.00022712,2]
[335085842,1723816232376,-1519.91618358,0.00022731,2]
[335085843,1723816232387,-11253.26983793,0.00022734,2]
[335085844,1723816232397,-150.0,0.00022744,2]
[335085845,1723816232407,-150.0,0.0002275,2]
[335085846,1723816232417,-150.0,0.00022751,2]
[335085847,1723816232429,-150.0,0.00022753,2]
[335085848,1723816232439,-11253.26983793,0.00022757,2]
[335085849,1723816232450,-1519.91618358,0.00022762,2]
[335085850,1723816232461,-1500.0,0.00022763,2]
[335085851,1723816232471,-150.0,0.00022771,2]
[335085852,1723816232482,-150.0,0.00022776,2]
[335085853,1723816232492,-1500.0,0.00022778,2]
[335085854,1723816232502,-11253.26983793,0.00022779,2]
[335085855,1723816232512,-150.0,0.00022782,2]
[335085856,1723816232522,-150.0,0.00022782,2]
[335085857,1723816232533,-1500.0,0.00022787,2]
[335085858,1723816232546,-1519.91618358,0.00022792,2]
[335085859,1723816232556,-835.2933,0.00022795,2]
[335085860,1723816232567,-150.0,0.00022796,2]
[335085861,1723816232578,-150.0,0.00022798,2]
[335085862,1723816232588,-150.0,0.00022799,2]
[335085863,1723816232598,-150.0,0.000228,2]
[335085864,1723816232609,-11986.00603169,0.000228,2]
[335085865,1723816232623,-2879.4795,0.000228,2]
[335085866,1723816232645,-445.10286169,0.000228,2]
[335085867,1723816232920,-824.49360169,0.000228,2]
[335085868,1723816232933,-1155.72649835,0.000228,2]
[335085869,1723816232945,-1158.32642948,0.000228,2]
[335085870,1723816232958,-293.43812873,0.000228,2]
[335085871,1723816233221,-787.72537109,0.000228,2]
[335085872,1723816233234,-753.09403611,0.000228,2]
[335085881,1723816237733,-155.0,0.00021999,2]
[335085882,1723816237743,-190.44,0.000228,2]
[335085883,1723816237881,-10228.40971,0.000228,2]
[335085884,1723816238114,-29901.49999999,0.000228,2]
[335085885,1723816238126,-2648.28822154,0.000228,2]
[335085888,1723816238158,-55530.12982505,0.000228,2]
[335085890,1723816238170,-1925.36,0.000228,2]
[335085912,1723816238376,-67891.64889344,0.000228,2]
[335085965,1723816239835,-1121.2213578,0.000228,2]
[335085966,1723816239964,-478.75263346,0.000228,2]
[335085967,1723816240024,-59800.85689989,0.000228,2]
[335085968,1723816240033,-243.9973009,0.00022801,2]
[335085969,1723816240044,-150.0,0.00022801,2]
[335085970,1723816240053,-11253.26983793,0.00022801,2]
[335085971,1723816240064,-150.0,0.00022802,2]
[335085972,1723816240074,-151.64,0.00022802,2]
[335085973,1723816240084,-1500.0,0.00022803,2]
[335085974,1723816240093,-500.0,0.00022811,2]
[335085975,1723816240102,-277.24900695,0.00022811,2]
[335085976,1723816240112,-51571.6625,0.00022812,2]
[335085977,1723816240121,-62776.5345,0.00022812,2]
[335085978,1723816240131,-150.0,0.00022813,2]
[335085979,1723816240140,-1500.0,0.00022814,2]
[335085980,1723816240150,-150.0,0.00022814,2]
[335085981,1723816240159,-150.0,0.00022817,2]
[335085982,1723816240170,-1500.0,0.00022817,2]
[335085983,1723816240184,-1519.91618358,0.00022822,2]
[335085984,1723816240194,-1500.0,0.00022823,2]
[335085985,1723816240203,-11253.26983793,0.00022824,2]
[335085986,1723816240259,-150.0,0.00022824,2]
[335085987,1723816240269,-150.0,0.00022826,2]
[335085988,1723816240279,-150.0,0.0002283,2]
[335085989,1723816240288,-150.0,0.00022833,2]
[335085990,1723816240298,-150.0,0.00022836,2]
[335085991,1723816240307,-150.0,0.00022839,2]
[335085992,1723816240317,-150.0,0.00022841,2]
[335085993,1723816240326,-150.0,0.00022842,2]
[335085994,1723816240335,-484.26508797,0.00022843,2]
[335085995,1723816240345,-150.0,0.00022844,2]
[335085996,1723816240354,-150.0,0.00022844,2]
[335085997,1723816240363,-150.0,0.00022846,2]
[335085998,1723816240373,-11253.26983793,0.00022846,2]
[335085999,1723816240382,-150.0,0.00022848,2]
[335086000,1723816240391,-150.0,0.0002285,2]
[335086001,1723816240401,-1519.91618358,0.00022852,2]
[335086002,1723816240410,-1500.0,0.00022854,2]
[335086003,1723816240420,-150.0,0.00022854,2]
[335086004,1723816240433,-150.0,0.00022856,2]
[335086005,1723816240443,-1500.0,0.00022859,2]
[335086006,1723816240452,-150.0,0.0002286,2]
[335086007,1723816240461,-150.0,0.00022862,2]
[335086008,1723816240471,-150.0,0.00022867,2]
[335086009,1723816240480,-11253.26983793,0.00022868,2]
[335086010,1723816240490,-150.0,0.00022869,2]
[335086011,1723816240499,-150.0,0.0002287,2]
[335086012,1723816240509,-150.0,0.00022871,2]
[335086013,1723816240518,-1500.0,0.00022881,2]
[335086014,1723816240527,-1519.91618358,0.00022883,2]
[335086015,1723816240537,-150.0,0.00022883,2]
[335086016,1723816240547,-150.0,0.00022885,2]
[335086017,1723816240556,-150.0,0.00022885,2]
[335086018,1723816240565,-11253.26983793,0.00022891,2]
[335086019,1723816240574,-150.0,0.00022896,2]
[335086020,1723816240583,-150.0,0.00022899,2]
[335086021,1723816240593,-150.0,0.000229,2]
[335086023,1723816240603,-150.0,0.0002291,2]
[335086024,1723816240613,-150.0,0.00022911,2]
[335086025,1723816240622,-500.0,0.00022913,2]
[335086026,1723816240634,-500.0,0.00022913,2]
[335086027,1723816240644,-500.0,0.00022913,2]
[335086028,1723816240653,-500.0,0.00022913,2]
[335086029,1723816240662,-500.0,0.00022913,2]
[335086031,1723816240672,-500.0,0.00022913,2]
[335086033,1723816240693,-500.0,0.00022913,2]
[335086035,1723816240703,-922.0,0.00022913,2]
[335086037,1723816240716,-11253.26983793,0.00022913,2]
[335086039,1723816240725,-1519.91618358,0.00022913,2]
[335086041,1723816240735,-765.19985766,0.00022913,2]
[335086044,1723816240745,-1500.0,0.00022919,2]
[335086047,1723816240755,-150.0,0.00022919,2]
[335086050,1723816240764,-150.0,0.00022922,2]
[335086053,1723816240773,-150.0,0.00022923,2]
[335086055,1723816240783,-150.0,0.00022923,2]
[335086057,1723816240793,-150.0,0.00022927,2]
[335086059,1723816240803,-150.0,0.00022928,2]
[335086061,1723816240813,-150.0,0.00022937,2]
[335086063,1723816240822,-150.0,0.00022937,2]
[335086065,1723816240832,-150.0,0.0002294,2]
[335086066,1723816240841,-1500.0,0.00022948,2]
[335086067,1723816240850,-1500.0,0.00022948,2]
[335086068,1723816240860,-1500.0,0.00022948,2]
[335086069,1723816240870,-150.0,0.00022952,2]
[335086070,1723816240880,-150.0,0.00022953,2]
[335086071,1723816240889,-1500.0,0.00022959,2]
[335086072,1723816240899,-150.0,0.00022962,2]
[335086073,1723816240909,-150.0,0.00022966,2]
[335086074,1723816240918,-226.2741535,0.0002297,2]
[335086075,1723816240932,-150.0,0.00022974,2]
[335086076,1723816240942,-150.0,0.00022974,2]
[335086077,1723816240951,-1500.0,0.00022976,2]
[335086078,1723816240960,-1500.0,0.00022977,2]
[335086080,1723816240970,-150.0,0.00022977,2]
[335086081,1723816240979,-150.0,0.00022978,2]
[335086083,1723816240990,-150.0,0.00022979,2]
[335086085,1723816240999,-150.0,0.00022982,2]
[335086087,1723816241010,-150.0,0.00022984,2]
[335086089,1723816241019,-150.0,0.00022986,2]
[335086091,1723816241029,-150.0,0.00022986,4]
[335086093,1723816241039,-150.0,0.00022986,4]
[335086095,1723816241048,-150.0,0.00022986,4]
[335086097,1723816241058,-1500.0,0.00022988,2]
[335086099,1723816241067,-151.64,0.00022992,2]
[335086101,1723816241076,-164.72,0.00022996,2]
[335086103,1723816241086,-150.0,0.00022997,2]
[335086105,1723816241095,-15853.6452908,0.00022998,31]
[335086107,1723816241105,-150.0,0.00022999,2]
[335086109,1723816241114,-1435.01750885,0.00023,2]
[335086111,1723816241124,-12314.42324481,0.00023,3]
[335086113,1723816241134,-150.0,0.00023,2]
[335086115,1723816241144,-252860.782179,0.00023003,3]
[335086117,1723816241155,-151.64,0.00023003,2]
[335086119,1723816241164,-151.64,0.00023003,2]
[335086121,1723816241174,-150.0,0.00023005,2]
[335086123,1723816241187,-150.0,0.00023005,2]
[335086125,1723816241197,-150.0,0.00023007,2]
[335086126,1723816241206,-150.0,0.00023007,2]
[335086127,1723816241216,-1435.01750885,0.0002301,2]
[335086128,1723816241225,-10045.12256195,0.0002301,2]
[335086129,1723816241234,-266.92791933,0.00023012,2]
[335086130,1723816241243,-173.04259118,0.00023013,2]
[335086131,1723816241254,-904999.68371886,0.00023013,15]
[335086132,1723816241264,-1000.0,0.00023013,2]
[335086133,1723816241273,-1000.0,0.00023013,2]
[335086134,1723816241282,-1000.0,0.00023013,2]